Workbook

Sheet 工作表1
A1: 項目 | B1: 預算數 | F1: 備註
B2: 政府經費 | C2: 自籌款 | D2: 合計
D3: 金額 | E3: 佔總經費%
A4: 一、直接薪資
A5: 計劃主持人 | B5: 108333 | C5: 108333 | D5: =B5+C5 -> 216666 | E5: =D5/D$11*100% -> 0.09302299621 | F5: =100000*13 -> 1300000 | G5: 元/人年 | H5: X | I5: 2 | J5: 人月/12人月 | K5: = | L5: =F5*I5/12 -> 216666.6667
A6: 協同主持人 | B6: 97500 | C6: 97500 | D6: =B6+C6 -> 195000 | E6: =D6/D$11*100% -> 0.0837209542 | F6: =90000*13 -> 1170000 | G6: 元/人年 | H6: X | I6: 2 | J6: 人月/12人月 | K6: = | L6: =F6*I6/12 -> 195000
A7: 研究助理 | B7: 81250 | C7: 81250 | D7: 162500 | E7: =D7/D$11*100% -> 0.06976746183 | F7: =30000*13 -> 390000 | G7: 元/人年 | H7: X | I7: 5 | J7: 人月/12人月 | K7: = | L7: =F7*I7/12 -> 162500
A8: 資深系統分析師 | B8: 195000 | C8: 195000 | D8: 390000 | E8: 0.1674419084 | F8: =90000*13 -> 1170000 | G8: 元/人年 | H8: X | I8: 4 | J8: 人月/12人月 | K8: = | L8: 390000
A9: 資深架構師 | B9: 260000 | C9: 260000 | D9: 520000 | E9: 0.2232558779 | F9: =80000*13 -> 1040000 | G9: 元/人年 | H9: X | I9: 6 | J9: 人月/12人月 | K9: = | L9: 520000
A10: 軟體工程師 | B10: 422500 | C10: 422500 | D10: 845000 | E10: 0.3627908015 | F10: =65000*13 -> 845000 | G10: 元/人年 | H10: X | I10: 12 | J10: 人月/12人月 | K10: = | L10: 845000
A11: 小計 | B11: =SUM(B5:B10) -> 1164583 | C11: =SUM(C5:C10) -> 1164583 | D11: =SUM(D5:D10) -> 2329166 | F11: 上述費用含薪資、保險費及退休金等費用
A12: 二、管理費用 | B12: 100 | C12: 400 | D12: =B12+C12 -> 500
A13: 小計 | B13: =B12 -> 100 | C13: =C12 -> 400 | D13: =B13+C13 -> 500
A14: 三、其它直接費用
A15: 1. 會計師簽證費用 | D15: =B15+C15 -> 0 | G15: 元/次 | H15: X | J15: 次 | K15: = | L15: =F15*I15 -> 0
A16: 2. 旅運費 | D16: =B16+C16 -> 0
A17: (1) 短程車資 | D17: 0 | G17: 元/趟次 | H17: X | J17: 趟次 | K17: = | L17: =F17*I17 -> 0
A18: (2) 國內差旅費 | B18: 20000 | C18: 20000 | D18: 40000 | F18: 1000 | G18: 元/趟次 | H18: X | I18: 40 | J18: 趟次 | K18: = | L18: 40000
A19: 3. 其它業務費 | D19: 0
A20: (1) 場地佈置費 | D20: 0 | G20: 元/場次 | H20: X | J20: 場次 | K20: = | L20: 0
A21: (2) 會議餐點費 | D21: 0 | G21: 元/場次 | H21: X | J21: 場次 | K21: = | L21: 0
A22: 4. 其它 | D22: 0
A23: 小計 | B23: =SUM(B15:B22) -> 20000 | C23: =SUM(C15:C22) -> 20000 | D23: 40000
A24: 四、公費 | D24: =B24+C24 -> 0
A25: 五、營業稅 | D25: =B25+C25 -> 0
A26: 合計 | B26: =B11+B13+B23+B24+B25 -> 1184683 | C26: =C11+C13+C23+C24+C25 -> 1184983 | D26: =B26+C26 -> 2369666
A27: 佔總金額% | B27: =B26/D26 -> 0.4999366999 | C27: =C26/D26 -> 0.5000633001 | D27: 1
